Workbook

Sheet 원가
A1: 인성,화성방화,황성방범 | D1: 8 | E1: 1 | F1: 스크린 | G1: 모든셔터 | H1: 스크린 | I1: 스크린 | K1: 웨이브,파이프는 하장바X (스라트에 포함) | L1: 가로 x | M1: 8m까지 | N1: 12M 이상 | P1: 제어기 | Q1: 양중비 추가 | X1: 운반비 | Y1: =200000*2 -> 400000
A2: 시공철재,시공스크린 | D2: 9 | E2: 1.1 | F2: 6 | G2: 4m 0.6 | H2: 메모참고 | I2: 150000 | L2: 60000 | M2: 20000 | N2: 6M 간격 | P2: 100000 | Q2: 2층 이상 | S2: 010-3692-2078 | X2: 경비 | Y2: 300000
A3: 세로할증 | D3: 10 | E3: 1.2 | F3: 철방화 | G3: 5m 0.7 | H3: 철재방화 | I3: 철재 | J3: 원형포스트 | K3: 스크린 | L3: 매립 | M3: 8-10m | N3: 1개씩 | P3: 결선 | Q3: 50000 | X3: 양중비 | Y3: 600000
D4: 11 | E4: 1.3 | F4: 23*1.3 | G4: 6m 0.8 | H4: 42000 | I4: 400000 | J4: 세로x 250,000 | K4: 가로 x 17000 | L4: 가로 x | M4: 40000 | N4: 350000 | P4: 200000 | X4: 렌탈비 | Y4: 900000
F5: 웨이브 | G5: 7m 0.9 | H5: 웨이브,파이프등 | J5: 가이드레일 | K5: 철제 | L5: 140000 | M5: 10-12m | N5: 700000 | X5: 화기/신호 | Y5: =150000*15 -> 2250000
F6: 15*1.3 | G6: 8m 1.0 | H6: 우리금속(메모) | J6: 세로x 99,000 | K6: 가로 x 15,000 | L6: 철재노출 | M6: 80000 | N6: 1050000 | Q6: 대전 부터 | X6: 합계 | Y6: =SUM(Y1:Y5) -> 4450000
F7: 철방범 | G7: 9m 1.1 | H7: 철재방범 | J7: 제연 | L7: 가로 x 78,000 | Q7: 지방 추가
A8: 지역구분 | F8: 17*1.3 | G8: 10m 1.2 | H8: 42000 | J8: 120000 | L8: 스크린노출 | Q8: 50000
C9: no. | D9: 가로 | E9: 세로 | F9: 무게 | G9: 면적 | H9: 철재,스크린 | I9: 검사비 | J9: 레일 | K9: 하장 | L9: 박스+보강 | M9: 샤프트 | N9: 세라크울 | O9: 모터 | P9: 제어기 | Q9: 시공비 | R9: 단가 | S9: 16 | T9: 수량 | U9: 원가 | V9: 원가실행 | W9: 120 | X9: =W9 -> 120 | Y9: =S9 -> 16 | Z9: ㎡ 단가
A10: 단열내풍압셔터 | C10: 1 | D10: 3.7 | E10: 3.085 | F10: =G10*25 -> 359.2875 | G10: =(D10+0.2)*(E10+0.6) -> 14.3715 | H10: =G10*240000 -> 3449160 | J10: =(E10+0.6)*125000*2 -> 921250 | L10: =(D10*137000)+37000 -> 543900 | M10: =D10*30000 -> 111000 | N10: =(D10+1+1)*2*(1000+1000)+(E10*2*2*2000) -> 47480 | O10: =경동(F10) -> 330000 | P10: 100000 | Q10: =시공(D10)+세로할증(E10)+300000+100000 -> 800000 | R10: =SUM(H10:Q10) -> 6302790 | S10: =R10*16.3*0.01 -> 1027354.77 | T10: 3 | U10: =R10+S10 -> 7330144.77 | V10: =(R10+S10)*T10 -> 21990434.31 | W10: =(R10+S10)*1.2 -> 8796173.724 | X10: =W10*T10 -> 26388521.17 | Y10: =S10*T10 -> 3082064.31
C21: 합 계 | F21: =SUM(F10:F20) -> 359.2875 | G21: 14.3715 | H21: 3449160 | I21: 0 | J21: 921250 | K21: 0 | L21: 543900 | M21: 111000 | O21: =SUM(O10:O20) -> 330000 | P21: 100000 | Q21: 800000 | R21: 6302790 | S21: 1027354.77 | T21: 3 | U21: 7330144.77 | V21: 21990434.31 | W21: 8796173.724 | X21: 26388521.17 | Y21: 3082064.31
C23: no. | D23: 가로 | E23: 세로 | F23: 무게 | G23: 면적 | H23: 철재,스크린 | I23: 비상문 | J23: 레일 | K23: 하장 | L23: 박스+보강 | M23: 샤프트 | N23: 처짐방지 | O23: 모터 | P23: 제어기 | Q23: 시공비 | R23: 단가 | S23: 8 | T23: 수량 | U23: 원가 | V23: 원가실행 | W23: 110 | X23: =W23 -> 110 | Y23: =S23 -> 8 | Z23: ㎡ 단가
A24: FSC01.A[방화 스크린] / 일체형 불가 | B24: 3.830 x 2.700 = 10.341 | C24: 1 | D24: 3.83 | E24: 2.7 | F24: =G24*6 -> 79.794 | G24: =(D24+0.2)*(E24+0.6) -> 13.299 | H24: =G24*28000 -> 372372 | J24: =(E24*108000)+(E24*8000*2*2) -> 378000 | K24: =D24*36000 -> 137880 | L24: =D24*85000 -> 325550 | M24: =D24*20000 -> 76600 | O24: =경동(F24) -> 285000 | P24: 350000 | Q24: =시공(D24)+세로할증(E24)+100000 -> 500000 | R24: =SUM(H24:Q24) -> 2425402 | S24: =R24*8.1*0.01 -> 196457.562 | T24: 2 | U24: =R24+S24 -> 2621859.562 | V24: =(R24+S24)*T24 -> 5243719.124 | W24: =(R24+S24)*1.1 -> 2884045.518 | X24: =W24*T24 -> 5768091.036 | Y24: =S24*T24 -> 392915.124
A25: FSC01.B[방화 스크린] / 일체형 불가 | B25: 7.830 x 2.700 = 21.141 | C25: 2 | D25: 7.83 | E25: 2.7 | F25: =G25*6 -> 158.994 | G25: 26.499 | H25: 741972 | J25: =(E25*108000)+(E25*8000*2*2) -> 378000 | K25: 281880 | L25: 665550 | M25: 156600 | O25: =경동(F25) -> 300000 | P25: 350000 | Q25: 700000 | R25: 3574002 | S25: 289494.162 | T25: 2 | U25: 3863496.162 | V25: 7726992.324 | W25: =(R25+S25)*1.1 -> 4249845.778 | X25: 8499691.556 | Y25: 578988.324
A26: FSC02.A[방화 스크린] | B26: 5.725 x 2.700 = 15.457 | C26: 3 | D26: 5.725 | E26: 2.7 | F26: 117.315 | G26: 19.5525 | H26: 547470 | J26: 378000 | K26: 206100 | L26: 486625 | M26: 114500 | O26: 285000 | P26: 350000 | Q26: 500000 | R26: 2867695 | S26: =R26*8.2*0.01 -> 235150.99 | T26: 3 | U26: 3102845.99 | V26: 9308537.97 | W26: 3413130.589 | X26: 10239391.77 | Y26: 705452.97
A27: FSC02.B[방화 스크린] | B27: 7.770 x 2.700 = 20.979 | C27: 4 | D27: 7.77 | E27: 2.7 | F27: 157.806 | G27: 26.301 | H27: 736428 | J27: 378000 | K27: 279720 | L27: 660450 | M27: 155400 | O27: 300000 | P27: 350000 | Q27: 700000 | R27: 3559998 | S27: 288359.838 | T27: 2 | U27: 3848357.838 | V27: 7696715.676 | W27: 4233193.622 | X27: 8466387.244 | Y27: 576719.676
A28: FSC02.C[방화 스크린] | B28: 7.830 x 2.700 = 21.141 | C28: 5 | D28: 7.83 | E28: 2.7 | F28: 158.994 | G28: 26.499 | H28: 741972 | J28: 378000 | K28: 281880 | L28: 665550 | M28: 156600 | O28: 300000 | P28: 350000 | Q28: 700000 | R28: 3574002 | S28: 289494.162 | T28: 1 | U28: 3863496.162 | V28: 3863496.162 | W28: 4249845.778 | X28: 4249845.778 | Y28: 289494.162
A29: FSC02.D[방화 스크린] | B29: 5.220 x 2.700 = 14.094 | C29: 6 | D29: 5.22 | E29: 2.7 | F29: 107.316 | G29: 17.886 | H29: 500808 | J29: 378000 | K29: 187920 | L29: 443700 | M29: 104400 | O29: 285000 | P29: 350000 | Q29: 500000 | R29: 2749828 | S29: 222736.068 | T29: 2 | U29: 2972564.068 | V29: 5945128.136 | W29: 3269820.475 | X29: 6539640.95 | Y29: 445472.136
A30: FSC02.E[방화 스크린] | B30: 3.830 x 2.700 = 10.341 | C30: 7 | D30: 3.83 | E30: 2.7 | F30: 79.794 | G30: 13.299 | H30: 372372 | J30: 378000 | K30: 137880 | L30: 325550 | M30: 76600 | O30: 285000 | P30: 350000 | Q30: 500000 | R30: 2425402 | S30: =R30*8.2*0.01 -> 198882.964 | T30: 3 | U30: 2624284.964 | V30: 7872854.892 | W30: 2886713.46 | X30: 8660140.381 | Y30: 596648.892
A31: FSC02.F[방화 스크린] | B31: 7.750 x 2.700 = 20.925 | C31: 8 | D31: 7.75 | E31: 2.7 | F31: 157.41 | G31: 26.235 | H31: 734580 | J31: 378000 | K31: 279000 | L31: 658750 | M31: 155000 | O31: 300000 | P31: 350000 | Q31: 700000 | R31: 3555330 | S31: =R31*8.2*0.01 -> 291537.06 | T31: 3 | U31: 3846867.06 | V31: 11540601.18 | W31: 4231553.766 | X31: 12694661.3 | Y31: 874611.18
A32: FSC02.G[방화 스크린] | B32: 1.825 x 2.700 = 4.927 | C32: 9 | D32: 1.825 | E32: 2.7 | F32: 40.095 | G32: 6.6825 | H32: 187110 | J32: 378000 | K32: 65700 | L32: 155125 | M32: 36500 | O32: 285000 | P32: 350000 | Q32: 500000 | R32: 1957435 | S32: 158552.235 | T32: 1 | U32: 2115987.235 | V32: 2115987.235 | W32: 2327585.959 | X32: 2327585.959 | Y32: 158552.235
A33: FSC02.H[방화 스크린] | B33: 5.950 x 2.700 = 16.065 | C33: 10 | D33: 5.95 | E33: 2.7 | F33: 121.77 | G33: 20.295 | H33: 568260 | J33: 378000 | K33: 214200 | L33: 505750 | M33: 119000 | O33: 285000 | P33: 350000 | Q33: 500000 | R33: 2920210 | S33: 236537.01 | T33: 2 | U33: 3156747.01 | V33: 6313494.02 | W33: 3472421.711 | X33: 6944843.422 | Y33: 473074.02
A34: FSC02.I[방화 스크린] | B34: 7.800 x 2.700 = 21.060 | C34: 11 | D34: 7.8 | E34: 2.7 | F34: 158.4 | G34: 26.4 | H34: 739200 | J34: 378000 | K34: 280800 | L34: 663000 | M34: 156000 | O34: 300000 | P34: 350000 | Q34: 700000 | R34: 3567000 | S34: 288927 | T34: 6 | U34: 3855927 | V34: 23135562 | W34: 4241519.7 | X34: 25449118.2 | Y34: 1733562
A35: FSC02.J[방화 스크린] | B35: 2.600 x 2.700 = 7.020 | C35: 12 | D35: 2.6 | E35: 2.7 | F35: 55.44 | G35: 9.24 | H35: 258720 | J35: 378000 | K35: 93600 | L35: 221000 | M35: 52000 | O35: 285000 | P35: 350000 | Q35: 500000 | R35: 2138320 | S35: 173203.92 | T35: 2 | U35: 2311523.92 | V35: 4623047.84 | W35: 2542676.312 | X35: 5085352.624 | Y35: 346407.84
A36: FSC02.K[방화 스크린] | B36: 7.620 x 2.700 = 20.574 | C36: 13 | D36: 7.62 | E36: 2.7 | F36: 154.836 | G36: 25.806 | H36: 722568 | J36: 378000 | K36: 274320 | L36: 647700 | M36: 152400 | O36: 300000 | P36: 350000 | Q36: 700000 | R36: 3524988 | S36: 285524.028 | T36: 1 | U36: 3810512.028 | V36: 3810512.028 | W36: 4191563.231 | X36: 4191563.231 | Y36: 285524.028
A37: FSC02.L[방화 스크린] | B37: 5.000 x 2.700 = 13.500 | C37: 14 | D37: 5 | E37: 2.7 | F37: 102.96 | G37: 17.16 | H37: 480480 | J37: 378000 | K37: 180000 | L37: 425000 | M37: 100000 | O37: 285000 | P37: 350000 | Q37: 500000 | R37: 2698480 | S37: 218576.88 | T37: 2 | U37: 2917056.88 | V37: 5834113.76 | W37: 3208762.568 | X37: 6417525.136 | Y37: 437153.76
C38: 합 계 | F38: =SUM(F24:F37) -> 1650.924 | G38: 275.154 | H38: 7704312 | I38: 0 | J38: 5292000 | K38: 2900880 | L38: 6849300 | M38: 1611600 | O38: =SUM(O24:O37) -> 4080000 | P38: 4900000 | Q38: 8200000 | R38: 41538092 | S38: 3373433.879 | T38: 32 | U38: 44911525.88 | V38: 105030762.3 | W38: 49402678.47 | X38: 115533838.6 | Y38: 7894576.347

Sheet 견적가
E1: 견 적 서
K2: 2024 년 09 월 06 일
A3: 귀 중: SG신성건설 | K3: ㈜ 주 일 기 업
A4: 참 조: 서창호 공무부장 | K4: www.juils.co.kr
A5: 현장명: 북천안 물류센터 신축공사 | I5: 경기도 김포시 통진읍 옹정리 320-67
A6: ="금 액:(金)"&NUMBERSTRING(K23,1)&" 원정" -> 금 액:(金)오억사천육백만 원정 | L6: H. P : 010-3700-4700
A7: 연락처: 010-3000-7466 | L7: T E L : (02) 849-5130
A8: ☞ 하기와 같이 見積합니다. | L8: F A X : (02) 6911-6315
A9: 명 칭 | E9: 수량 | F9: 단위 | G9: 재 료 비 | I9: 노 무 비 | K9: 합 계 | M9: 비고
A11: =A33 -> 1. 셔터 설치공사 | E11: =E55 -> 97 | F11: SET | G11: =H55 -> 531256500 | I11: =J55 -> 0 | K11: =G11+I11 -> 531256500
A12: 2. 안전관리비 | E12: 1 | F12: 식 | K12: 2656000
A13: 3. 고용보험료 | E13: 1 | F13: 식 | K13: 1499000
A14: 4. 국민건강보험료 | E14: 1 | F14: 식 | K14: 8044000
A15: 5. 건설기계대여대금지급보증수수료 | E15: 1 | F15: 식 | K15: 371000
A16: 6. 청소 및 정리비 | E16: 1 | F16: 식
A17: 7. 보증보험 수수료 | E17: 1 | F17: 식 | K17: 530000
A18: 8. 공사용 사무실 운용비 | E18: 1 | F18: 식 | K18: 500000 | O18: 계약금액 | P18: 594960000 | R18: 24.04.22 | S18: 총 금액(원) | T18: 2024.04.08 | U18: 2024.04.22
A19: 9. 지급자재 관리비 | E19: 1 | F19: 식 | K19: 500000
A20: 10. 퇴직공제부금 | E20: 1 | F20: 식
A21: 11. 일반관리비 및 이윤 | E21: 1 | F21: 식 | K21: 643500
A23: 합 계 | K23: =SUM(K11:K22) -> 546000000 | P23: 595390000 | R23: 환율(송금 기준) | T23: 1차 송금 | U23: 잔액
A24: * 특기사항 1 : 부가세 별도 / 견적서 유효기간: ~60일 | P24: =P18-P23 -> -430000 | R24: 192.42 | S24: 293472454.3 | T24: 140000000 | U24: =U25*R25 -> 159592651.7
A25: * 특기사항 2 : 중국 업체 안린 단가 적용 2023년 10월5일 기준, 자재비 360,000,000원(통관비용-단가+20% 포함) | R25: 191.32 | S25: 1525166.066 | T25: 691000 | U25: =S25-T25 -> 834166.0655
A26: * OHD sample 도착 2023년 12월 2째주 전 도착 예정 | R26: 계좌 번호 | S26: 국민은행 | T26: (주)대한 | U26: 253401-04-381605
A31: NO | B31: 명 칭 | C31: 규 격(mm) | E31: 수량 | F31: 단위 | G31: 재 료 비 | I31: 노 무 비 | K31: 합 계 | M31: 비고 | R31: 2024.05.21
C32: 가로(W) | D32: 높이(H) | G32: 단 가 | H32: 금액 | I32: 단 가 | J32: 금액 | K32: 단 가 | L32: 금액 | R32: 자재비 | S32: 노무비 | T32: 공과잡비 | U32: 마진
A33: 1. 셔터 설치공사 | R33: =T24+U24 -> 299592651.7 | S33: =J55 -> 0 | U33: =P18-(T33+S33+R33) -> 295367348.3
B34: OHD01/오버헤드/제작일체 | C34: 10460 | D34: 3600 | E34: 12 | F34: EA | G34: 6086650 | H34: =G34*E34 -> 73039800 | J34: =I34*E34 -> 0 | K34: =I34+G34 -> 6086650 | L34: =J34+H34 -> 73039800
B35: OHD02/오버헤드/제작일체 | C35: 10310 | D35: 3600 | E35: 1 | F35: EA | G35: 6060325 | H35: =G35*E35 -> 6060325 | J35: =I35*E35 -> 0 | K35: =I35+G35 -> 6060325 | L35: =J35+H35 -> 6060325
B36: OHD03/오버헤드/제작일체 | C36: 10160 | D36: 3600 | E36: 24 | F36: EA | G36: 6184000 | H36: 148416000 | J36: 0 | K36: 6184000 | L36: 148416000
B37: OHD04/오버헤드/제작일체 | C37: 10110 | D37: 3600 | E37: 13 | F37: EA | G37: 6173875 | H37: 80260375 | J37: 0 | K37: 6173875 | L37: 80260375
B38: OHD05/오버헤드/제작일체 | C38: 10060 | D38: 3600 | E38: 14 | F38: EA | G38: 6167800 | H38: 86349200 | J38: 0 | K38: 6167800 | L38: 86349200
B39: OHD06/오버헤드/제작일체 | C39: 10010 | D39: 3600 | E39: 1 | F39: EA | G39: 6159700 | H39: 6159700 | J39: 0 | K39: 6159700 | L39: 6159700
B40: OHD07/오버헤드/제작일체 | C40: 9960 | D40: 3600 | E40: 3 | F40: EA | G40: 6145525 | H40: 18436575 | J40: 0 | K40: 6145525 | L40: 18436575
B41: OHD08/오버헤드/제작일체 | C41: 9940 | D41: 3600 | E41: 1 | F41: EA | G41: 6106475 | H41: 6106475 | J41: 0 | K41: 6106475 | L41: 6106475
B42: OHD09/오버헤드/제작일체 | C42: 9910 | D42: 3600 | E42: 1 | F42: EA | G42: 6102425 | H42: 6102425 | J42: 0 | K42: 6102425 | L42: 6102425
B43: OHD10/오버헤드/제작일체 | C43: 7110 | D43: 3600 | E43: 3 | F43: EA | G43: 4763900 | H43: 14291700 | J43: 0 | K43: 4763900 | L43: 14291700
B44: OHD11/오버헤드/제작일체 | C44: 6960 | D44: 3600 | E44: 6 | F44: EA | G44: 3946650 | H44: 23679900 | J44: 0 | K44: 3946650 | L44: 23679900
B45: OHD12/오버헤드/제작일체 | C45: 6940 | D45: 3600 | E45: 3 | F45: EA | G45: 3946650 | H45: 11839950 | J45: 0 | K45: 3946650 | L45: 11839950
B46: OHD13/오버헤드/제작일체 | C46: 6910 | D46: 3600 | E46: 4 | F46: EA | G46: 3940575 | H46: 15762300 | J46: 0 | K46: 3940575 | L46: 15762300
B47: OHD14/오버헤드/제작일체 | C47: 4610 | D47: 3600 | E47: 2 | F47: EA | G47: 3306750 | H47: 6613500 | J47: 0 | K47: 3306750 | L47: 6613500
B48: OHD15/오버헤드/제작일체 | C48: 4460 | D48: 3600 | E48: 4 | F48: EA | G48: 3146500 | H48: 12586000 | J48: 0 | K48: 3146500 | L48: 12586000
B49: OHD16/오버헤드/제작일체 | C49: 4440 | D49: 3600 | E49: 2 | F49: EA | G49: 3142450 | H49: 6284900 | J49: 0 | K49: 3142450 | L49: 6284900
B50: OHD17/오버헤드/제작일체 | C50: 4410 | D50: 3600 | E50: 2 | F50: EA | G50: 3138400 | H50: 6276800 | J50: 0 | K50: 3138400 | L50: 6276800
B51: OHD18/오버헤드/제작일체 | C51: 3860 | D51: 3600 | E51: 1 | F51: EA | G51: 2990575 | H51: 2990575 | J51: 0 | K51: 2990575 | L51: 2990575
A55: 합 계 (셔터 수량) | E55: =SUM(E34:E54) -> 97 | F55: EA | H55: =SUM(H34:H54) -> 531256500 | J55: =SUM(J34:J54) -> 0 | L55: =SUM(L34:L54) -> 531256500

Sheet 설계
E1: 설 계 가
K2: =견적가!K2:M2 -> 2024 년 09 월 06 일
A3: =견적가!A3 -> 귀 중: SG신성건설 | K3: ㈜ 주 일 기 업
A4: =견적가!A4 -> 참 조: 서창호 공무부장 | K4: www.juils.co.kr
A5: =견적가!A5 -> 현장명: 북천안 물류센터 신축공사 | I5: 경기도 김포시 통진읍 옹정리 320-67
A6: ="금 액:(金)"&NUMBERSTRING(K21,1)&" 원정" -> 금 액:(金)사천일백삼십사만 원정 | L6: H. P : 010-9263-1871
A7: =견적가!A7 -> 연락처: 010-3000-7466 | L7: T E L : (02) 849-5130
A8: ☞ 하기와 같이 見積합니다. | L8: F A X : (02) 6911-6315
A9: 명 칭 | E9: 수량 | F9: 단위 | G9: 재 료 비 | I9: 노 무 비 | K9: 합 계 | M9: 비고
A11: =A30 -> 1. 셔터 설치공사 | E11: =E52 -> 3 | F11: SET | G11: =H52 -> 36540000 | I11: =J52 -> 4800000 | K11: =G11+I11 -> 41340000
A21: 합 계 | K21: =SUM(K11:L20) -> 41340000
A22: * 특기사항 : 부가세 별도
A23: 1. 1차 배관,배선(모터까지), 2차 배관,배선(모터에서 연동제어기까지) 별도. (단, 2차측 결선 포함)
A24: 2. 방화석고벽, 도장, 후레싱작업, 실리콘작업, 열.연감지기, 화기감시자 별도
A25: 3. 결제: 현금 [1차 자재 투입시 30%, 설치완료 (결선제외)시 60%, 결선완료 후 10%]
A26: 4. 설계 예가 반영기준 견적서 입니다. (실제 공사 실행가 아님)
A28: NO | B28: 명 칭 | C28: 규 격(mm) | E28: 수량 | F28: 단위 | G28: 재 료 비 | I28: 노 무 비 | K28: 합 계 | M28: 비고
C29: 가로(W) | D29: 높이(H) | G29: 단 가 | H29: 금액 | I29: 단 가 | J29: 금액 | K29: 단 가 | L29: 금액
A30: =견적가!A33 -> 1. 셔터 설치공사
A31: =원가!C10 -> 1 | B31: =원가!A10 -> 단열내풍압셔터 | C31: =원가!D10*1000 -> 3700 | D31: =원가!E10*1000 -> 3085 | E31: =원가!T10 -> 3 | F31: SET | G31: =ROUND(견적가!G34,-4)*2 -> 12180000 | H31: =E31*G31 -> 36540000 | I31: =원가!Q10*2 -> 1600000 | J31: =E31*I31 -> 4800000 | K31: =G31+I31 -> 13780000 | L31: 41340000
A46: <<국민방화스크린셔터 견적조건>>
A47: 1. 스크린 : 0.65±0.05mm (실리카 정품사용 / Sio2 98% 이상)
A48: 2. 비상문 : 없음
A49: 3. 가이드레일, 하장바 : SUS H/L 1.2T 마감
A50: 4. 셔터박스 : 매립형 (R-case) / 노출형 (갈바1.2T-무도장)
A51: 5. 폐쇄기, 연동제어기 포함
A52: 합 계 | E52: =SUM(E31:E51) -> 3 | F52: SET | H52: =SUM(H31:H51) -> 36540000 | J52: =SUM(J31:J51) -> 4800000 | L52: =SUM(L31:L51) -> 41340000

Sheet DATA
A1: 경동() | B1: 가격 | C1: 화성방범() | D1: 가격 | E1: 화성방화()
A2: KD - 150K | B2: 285000 | C2: OXEN-300 | D2: 300000 | E2: OXEN-300 | F2: 365000
A3: KD - 300K | B3: 300000 | C3: OXEN-400 | D3: 320000 | E3: OXEN-400 | F3: 400000
A4: KD - 400K | B4: 330000 | C4: OXEN-500 | D4: 380000 | E4: OXEN-500 | F4: 465000
A5: KD - 500K | B5: 370000 | C5: OXEN-600 | D5: 400000 | E5: OXEN-600 | F5: 485000
A6: KD - 600K | B6: 380000 | C6: OXEN-800 | D6: 480000 | E6: OXEN-800 | F6: 590000
A7: KD - 800K | B7: 520000 | C7: OXEN-1000 | D7: 550000 | E7: OXEN-1000 | F7: 650000
A8: KD - 1000K | B8: 550000 | C8: OXEN-1300 | D8: 880000 | E8: OXEN-1300 | F8: 1080000
A9: KD - 1200K | B9: 1300000 | C9: OXEN-1600 | D9: 990000 | E9: OXEN-1600 | F9: 1190000
A10: KD - 1500K | B10: 1300000
A11: KD - 2000K | B11: 2000000
A12: 특수1
A13: 특수2
A14: 제연() | B14: 기본단가 | C14: 시공() | D14: 기본단가 | E14: 세로할증()
A15: 4"( ~6.0M) | B15: 350000 | C15: ~6.0M | D15: 400000 | E15: 3.5M 기준 | F15: 0
A16: 5"(6.01~8.0M) | B16: 400000 | C16: 6.01~7.0M | D16: 500000 | E16: 3.51~4.5M | F16: 50000
A17: 5"(8.01~10.0M) | B17: 500000 | C17: 7.01~8.0M | D17: 600000 | E17: 4.51~5.5M | F17: 100000
A18: 6"(10.01~12.0M) | B18: 600000 | C18: 8.01~9.0M | D18: 700000 | E18: 5.51~6.5M | F18: 150000
C19: 9.01~10.0M | D19: 800000 | E19: 6.51~7.5M | F19: 200000
C20: 10.1~11.0M | D20: 900000 | E20: 7.51~8.5M | F20: 250000
C21: 11.01~12.0M | D21: 1000000 | E21: 8.51~9.5M | F21: 300000
C22: 12.1~14.0M | D22: 1200000 | E22: 9.51~10.5M | F22: 350000
C23: 14.01~16.0M | D23: 1400000
C24: 16.01~18.0M | D24: 1600000
C25: 18.01~20.1M | D25: 1800000
C26: 20.01M~ | D26: 협의

Sheet 라운드견적
F1: 스크린 | G1: 철재 | H1: 스크린 | I1: 스크린 | J1: 철제,스크린 | K1: 설계(M/당) | L1: 가로 x | M1: 8m까지 | N1: 12M 이상 | O1: 250KG | P1: 연동 | Q1: 가로기준 | R1: 세로할증
F2: 6 | G2: 0.5 | H2: 26000 | I2: 150000 | J2: 세로x70,000 | K2: +10,000 | L2: 50000 | M2: 10000 | N2: 6M 간격 | O2: 242000 | P2: 100000 | Q2: 6M: 40만 | R2: 3.5-5=5만
F3: 철재 | G3: 스크린 | H3: 경쟁 | I3: 철재 | J3: 설계 | K3: 스크린 | L3: 매립 | M3: 8-10m | N3: 1개씩 | O3: 300KG | P3: 결선 | Q3: 6-8m: 50만 | R3: 5-6.5=10만
F4: 23*1.3 | G4: 3m 0.5 | H4: 23000 | I4: 330000 | J4: 세로x80,000 | K4: 20000 | L4: 가로 x | M4: 25000 | N4: 350000 | O4: 253000 | P4: 100000 | Q4: 12M이하: 80만 | R4: 6.5-8.0=15만
F5: 웨이브 | G5: 4m 0.6 | H5: 설계 | I5: 스크린설계 | K5: 철제 | L5: 80000 | M5: 10-12m | N5: 700000 | O5: 400KG | Q5: 박스 +5만원 | R5: 8-10=20만
F6: 15*1.3 | H6: 32000 | I6: 200000 | K6: 10000 | L6: 노출 | M6: 45000 | N6: 1050000 | O6: 270000 | Q6: 지방 +5만원
I7: 철재설계 | M7: 설계 | O7: 모터방범추가 | Q7: 설계
I8: 400000 | M8: +5,000 | O8: 20000 | Q8: 6m이하50만
C9: no. | D9: 가로 | E9: 세로 | F9: 무게 | G9: 면적 | H9: 스크린 | I9: 비상문 | J9: 레일 | K9: 하장 | L9: 박스+보강 | M9: 샤프트 | N9: 처짐방지 | O9: 모터 | P9: 제어기 | Q9: 시공비 | R9: 단가 | S9: 10 | T9: 수량 | U9: 원가 | V9: 원가실행 | W9: 120 | X9: =W9 -> 120 | Y9: =S9 -> 10 | Z9: =F9 -> 무게
A10: FSS01(스크린일체형) | C10: 1 | D10: 21.89 | E10: 3.56 | F10: =G10*6 -> 817.7904 | G10: =(D10+8)*(E10+1) -> 136.2984 | H10: =G10*26000 -> 3543758.4 | I10: 150000 | J10: =E10*100000 -> 356000 | K10: =D10*50000 -> 1094500 | L10: =D10*80000 -> 1751200 | M10: =D10*10000 -> 218900 | N10: =D10*200000 -> 4378000 | O10: =인성(F10) ->  | P10: 500000 | Q10: =D10*300000 -> 6567000 | R10: =SUM(H10:Q10) ->  | S10: =R10*10*0.01 ->  | T10: 1 | U10: =R10+S10 ->  | V10: =(R10+S10)*T10 ->  | W10: =(R10+S10)*1.2 ->  | X10: =W10*T10 ->  | Y10: =S10*T10 -> 
C11: 합 계 | G11: =SUM(G10:G10) -> 136.2984 | H11: 3543758.4 | I11: 150000 | J11: 356000 | K11: 1094500 | L11: 1751200 | M11: 218900 | O11: =SUM(O10:O10) ->  | P11: 500000 | Q11: 6567000 | T11: 1

Sheet 스크린,철재,OHD,스태킹,알펜스,내풍압,영사창 조건
A1: <<국민방화스크린셔터 견적조건>> | H1: <<철재 방화셔터 견적조건>> | O1: * 특기사항 : 부가세 별도
A2: 1. 스크린 : 0.65±0.05mm | H2: 1. 스라트 : 갈바 1.6mm | O2: 1. 1차 배관,배선(모터까지), 2차 배관,배선(모터~연동제어기까지) 별도. (단, 2차측 결선포함)
A3: 2. 비상문 : 900 * 2,100 (양방향) | H3: 2. 비상문 : 900 * 2,100 (주물 용접형) | O3: 2. 철거, 방화석고벽, 도장, 후레싱작업, 실리콘작업, 열.연감지기, 화기감시자 별도
A4: 3. 가이드레일, 하장바 : SUS H/L 1.5T 마감 | H4: 3. 가이드레일, 하장바 : SUS H/L 1.5T 마감 | O4: 3. 결제: 현금 [1차 자재 투입시 30%, 설치완료 (결선제외)시 60%, 결선완료 후 10%]
A5: 4. 셔터박스 : 매립형 (R-case) / 노출형 (갈바1.2T-무도장) | H5: 4. 셔터박스 : 매립형 (R-case) / 노출형 (갈바1.2T-무도장) | O5: 4. 공사 발주하실 경우 "위와 같이 발주합니다" 자필 기재 후 견적서 갑지에 [회사 명판] 날인해서 팩스 회신 바랍니다.
A6: 5. 폐쇄기, 연동제어기 포함 | H6: 5. 폐쇄기, 연동제어기 포함
A8: <<O.H.D 견적조건>> | H8: <<O.H.D 견적조건>> | O8: * 특기사항 : 부가세 별도
A9: 1. PANEL : STEEL 0.5T 엠보싱 / 우레탄 (50T) | H9: 1. PANEL : STEEL 0.5T 엠보싱 / 우레탄 (75T) | O9: 1. 1차 배관,배선(모터까지) 별도.
A10: 2. TRACK : 2" 고내구성 용융 아연도 철판 | H10: 2. TRACK : 3" 고내구성 용융 아연도 철판 | O10: 2. 철거, 도장, 후레싱작업, 실리콘작업, 화기감시자 별도
A11: 3. 투명창 : 630 * 330 / 1LINE 설치 | H11: 3. 투명창 : 630 * 330 / 1LINE 설치 | O11: 3. 결제: 현금(발주시 30%, 공사완료후 70%)
A12: 4. 색상 : WHITE or SILVER | H12: 4. 색상 : WHITE or SILVER | O12: 4. 공사 발주하실 경우 "위와 같이 발주합니다" 자필 기재 후 견적서 갑지에 [회사 명판] 날인해서 팩스 회신 바랍니다.
A14: <<스태킹도어 견적조건>> | H14: <<스태킹도어 견적조건>>
A15: 1. PANEL : STEEL 0.5T 엠보싱 / 우레탄 (50T) | H15: 1. PANEL : STEEL 0.5T 엠보싱 / 우레탄 (75T)
A16: 2. 가이드레일, 상.하.좌우 몰딩 : AL6063 압출바 (백색전착) | H16: 2. 가이드레일, 상.하.좌우 몰딩 : AL6063 압출바 (백색전착)
A17: 3. 투명창 : 630 * 330 / 1LINE 설치 | H17: 3. 투명창 : 630 * 330 / 1LINE 설치
A18: 4. 색상 : WHITE or SILVER | H18: 4. 색상 : WHITE or SILVER
A19: 5. 셔터박스 : OPEN TYPE | H19: 5. 셔터박스 : OPEN TYPE
A21: <<알(R)펜스 고속도어 견적조건>> | H21: <<알(R)펜스 고속도어 견적조건>>
A22: 1. PANEL : STEEL 0.5T 엠보싱 / 우레탄 (50T) | H22: 1. PANEL : STEEL 0.5T 엠보싱 / 우레탄 (75T)
A23: 2. 가이드레일, 상.하.좌우 몰딩 : AL6063 압출바 (백색전착) | H23: 2. 가이드레일, 상.하.좌우 몰딩 : AL6063 압출바 (백색전착)
A24: 3. 투명창 : 630 * 330 / 1LINE 설치 | H24: 3. 투명창 : 630 * 330 / 1LINE 설치
A25: 4. 색상 : WHITE or SILVER | H25: 4. 색상 : WHITE or SILVER
A26: 5. 속도 : 400 ~ 800mm (인버터제어방식 / 저속->고속->저속) | H26: 5. 속도 : 400 ~ 800mm (인버터제어방식 / 저속->고속->저속)
A27: 6. 안전장치 : 포토센서 및 하부안전센서 | H27: 6. 안전장치 : 포토센서 및 하부안전센서
A28: 7. 작동방식 : 리모콘 방식 or 루프센서 방식 | H28: 7. 작동방식 : 리모콘 방식 or 루프센서 방식
A29: 8. 평상시 : 전동 / 정전시 : 수동 체인 방식 (필수) | H29: 8. 평상시 : 전동 / 정전시 : 수동 체인 방식 (필수)
A30: 9. 셔터박스 : SUS H/L 1.2T 3면 마감 | H30: 9. 셔터박스 : SUS H/L 1.2T 3면 마감
A32: <<내풍압셔터 견적조건>> | H32: * 특기사항 : 부가세 별도 | O32: <<영사창 견적조건>> | V32: * 특기사항 : 부가세 별도
A33: 1. 스라트 : AL6063 이중 압출바 (불소도장) | H33: 1. 1차 배관,배선(모터까지) 별도. | O33: 1. 스크린 : 0.7mm (실리카 정품사용) | V33: 1. 시공 별도.
A34: 2. 투명창 : 없음. | H34: 2. 철거, 도장, 후레싱작업, 실리콘작업, 화기감시자 별도 | O34: 2. 프레임, 및 마감 : 갈바 1.2T | V34: 2. 결제: 현금(발주시 50%, 자재납품 완료후 50%)
A35: 3. 가이드레일 : AL6063 압출바 (백색전착) | H35: 3. 결제: 현금(발주시 30%, 공사완료후 70%) | O35: 3. 색상 : 블랙(분체도장)
A36: 4. 윈드락 장착형 : 45m/sec에서 견딜 수 있는 구조 | O36: 4. 자석 : 사급
A37: 5. 셔터박스 : 노출형 (갈바1.2T / 무도장) | O37: 5. 납기 : 발주일로 15일 이내
A39: <<철재 방범셔터 견적조건>> | H39: * 특기사항 : 부가세 별도
A40: 1. 스라트 : 갈바 1.2mm | H40: 1. 1차 배관,배선(모터까지) 별도.
A41: 2. 가이드레일, 하장바 : SUS H/L 1.2T 마감 | H41: 2. 철거, 도장, 후레싱작업, 실리콘작업, 화기감시자 별도
A42: 3. 셔터박스 : 노출형 (갈바1.2T-무도장) | H42: 3. 결제: 현금(발주시 30%, 공사완료후 70%)
